Cogmind - Beta 13 @@@ ROGUE MODE // 2024.04.09 @ 14:06:38 Player: Phosphophyllite Result: Destroyed by Y-64 Sentinel with Wave Gun Performance ------------- Evolutions (3) 1500 Regions Visited (7) 1400 Robots Destroyed (18) 90 Value Destroyed (489) 489 Prototype IDs (5) 100 Alien Tech Used (0) 0 Bonus (360) 360 TOTAL SCORE: 3939 Bonus ------- Follower Combat Kills 60 Aligned with FarCom 300 Cogmind --------- Core Integrity 0/700 Matter 181/300 Energy 70/100 System Corruption 7% Temperature Cool (9) Movement Core (350) Ox6 Location -7/Lower Caves Parts ------- > --- POWER (1) -------- (None) > --- PROPULSION (4) --- (None) > --- UTILITY (6) ------ Medium Storage Unit Heart of Steel > --- WEAPON (2) ------- (None) > --- INVENTORY (10) --- Improved Hover Unit Improved Hover Unit Small Storage Unit Improved Sensor Array Heavy EM Shotgun Peak State ------------ > --- POWER ------------ Improved Deuterium Engine > --- PROPULSION ------- Aluminum Leg Aluminum Leg Carbon-fiber Leg > --- UTILITY ---------- Medium Storage Unit Experimental Sensor Array Signal Interpreter Seismic Detector System Shield Skeleton Box > --- WEAPON ----------- Heavy EM Shotgun Improved Assault Rifle > --- INVENTORY -------- Improved Hover Unit Improved Hover Unit Cesium-ion Thruster Small Storage Unit Improved Sensor Array Heavy EM Shotgun Ion Cannon Autogun Stasis Trap [Rating: 39] Favorites ----------- Power Ion Engine Engine Ion Engine Power Core Light Nuclear Core Propulsion Light Treads Treads Light Treads Leg Aluminum Leg Flight Unit Cesium-ion Thruster Utility Medium Storage Unit Device Seismic Detector Storage Medium Storage Unit Processor Signal Interpreter Hackware System Shield Weapon EM Pulse Gun Energy Gun EM Pulse Gun Energy Cannon Ion Cannon Ballistic Gun Improved Assault Rifle Launcher Grenade Launcher Special Melee Weapon Improved Datajack Build | -11 -10 -10 -10 -9 -8 -7 -7 ------- Run | Yrd Mat Min Exi Min Mat Fac Low Slots Evolved 6 | . . . . . 4 2 . Power . | . . . . . . . . Propulsion 2 | . . . . . 2 . . Utility 4 | . . . . . 2 2 . Weapon . | . . . . . . . . Parts Attached 38 | 8 1 4 . 3 10 6 6 Power 6 | 2 . 1 . . 1 1 1 Engine 4 | 2 . 1 . . . 1 . Core 2 | . . . . . 1 . 1 Reactor . | . . . . . . . . Propulsion 6 | 2 . . . . 4 . . Treads 2 | 2 . . . . . . . Leg 3 | . . . . . 3 . . Wheel . | . . . . . . . . Hover . | . . . . . . . . Flight 1 | . . . . . 1 . . Utility 12 | 2 1 1 . . 3 4 1 Device 8 | 1 . . . . 2 4 1 Storage 2 | 1 1 . . . . . . Processor 1 | . . 1 . . . . . Hackware 1 | . . . . . 1 . . Protection . | . . . . . . . . Artifact . | . . . . . . . . Weapon 14 | 2 . 2 . 3 2 1 4 Energy Gun 6 | 2 . 1 . 2 1 . . Energy Cannon 1 | . . . . . . . 1 Ballistic Gun 2 | . . . . . 1 1 . Ballistic Cannon . | . . . . . . . . Launcher 2 | . . 1 . 1 . . . Special Weapon . | . . . . . . . . Impact Weapon . | . . . . . . . . Slashing Weapon . | . . . . . . . . Piercing Weapon . | . . . . . . . . Special Melee Weapon 3 | . . . . . . . 3 Unidentified Prototypes 5 | . . . . . 3 1 1 Parts Lost 16 | . . . . 5 1 2 8 Power 2 | . . . . . 1 . 1 Propulsion 4 | . . . . 2 . . 2 Utility 4 | . . . . . . 2 2 Weapon 6 | . . . . 3 . . 3 Highest Loss Streak 7 | . . . . 3 1 2 7 To Critical Strikes 1 | . . . . . . . 1 Average Slot Usage (%) 92 | . 100 100 100 93 82 88 59 Engine 10 | . 14 14 14 14 7 6 5 Treads 15 | . 28 28 28 27 . . . Leg 9 | . . . . . 22 23 13 Device 10 | . 14 8 . . 9 19 5 Storage 11 | . 14 14 14 14 9 7 7 Processor 7 | . . 5 14 14 9 7 7 Hackware 3 | . . . . . 7 7 7 Energy Gun 13 | . 28 20 14 14 4 7 . Ballistic Gun 3 | . . . . . 8 7 5 Launcher 3 | . . 7 14 8 . . . Naked Turns . | . . . . . . . . Heaviest Build 31 | 13 18 21 20 20 23 31 28 Greatest Support 40 | 40 40 40 40 40 35 35 35 Greatest Overweight (x) 8 | 1 . . . 4 1 . 8 Average Overweight (x) . | . . . . . . . . Largest Inventory Capacity 10 | 8 10 10 10 10 10 10 10 Average Capacity 9 | 7 9 10 10 10 10 10 10 Most Carried 10 | 8 10 10 10 10 10 10 10 Average Carried 9 | 5 8 9 9 9 8 9 8 Final Capacity 10 | 8 10 10 10 10 10 10 10 Final Carried 10 | 7 10 10 10 9 10 10 5 Class Distribution -------------------- 82% | Mutant 17% | Skirmisher Dominant Class ---------------- Mutant | -10/Materials Mutant | -10/Mines Mutant | -10/Exiles Mutant | -9/Mines Mutant | -8/Materials Skirmisher | -7/Factory Mutant | -7/Lower Caves Resources | -11 -10 -10 -10 -9 -8 -7 -7 ----------- Run | Yrd Mat Min Exi Min Mat Fac Low Matter Collected 646 | 280 10 50 . 80 149 50 27 Remotely . | . . . . . . . . Salvage Created 646 | 120 118 52 . 60 234 62 . Parts 43 | 5 10 5 . 6 13 4 . Haulers Intercepted . | . . . . . . . . Recyclers Shooed . | . . . . . . . . Parts Field Recycled . | . . . . . . . . Retrieved Matter . | . . . . . . . . Parts Self-Destructed 2 | . . . . . . . 2 Prevented . | . . . . . . . . Kills | -11 -10 -10 -10 -9 -8 -7 -7 ------- Run | Yrd Mat Min Exi Min Mat Fac Low Combat Hostiles Destroyed 11 | . 2 3 . 2 3 1 . Guns 10 | . 2 3 . 1 3 1 . AOE 1 | . . . . 1 . . . Classes Destroyed 8 | 2 2 1 . 1 1 1 . Worker 2 | . . . . 1 . 1 . Tunneler 1 | 1 . . . . . . . Recycler 1 | 1 . . . . . . . Watcher 3 | . 1 . . . 2 . . Swarmer 3 | . . 3 . . . . . Grunt 6 | . 2 . . 2 2 . . Sentry 1 | . . . . . 1 . . Programmer 1 | . . . . . . 1 . Best Kill Streak 3 | 2 2 3 . 3 1 2 . Combat Bots Only 3 | . 2 3 . 1 1 1 . Max Kills in Single Turn 2 | 1 1 1 . 1 1 2 . Gunslinging . | . . . . . . . . Exploded 1 | . . . . 1 . . . Melee . | . . . . . . . . Uniques/NPCs Destroyed . | . . . . . . . . Combat | -11 -10 -10 -10 -9 -8 -7 -7 -------- Run | Yrd Mat Min Exi Min Mat Fac Low Hostile Shots Fired 145 | . 14 11 . 23 19 15 63 Missed 28 | . 4 2 . 3 4 . 15 Damage Taken 2628 | . 112 80 . 472 266 311 1387 Core 863 | . 12 6 . 87 51 88 619 Absorbed by Shields . | . . . . . . . . Core Remaining (%) 82 | 100 . . . 58 90 . . Volleys Fired 63 | 4 6 5 . 9 18 14 7 Largest 2 | 2 2 2 . 2 2 2 2 Hottest 83 | 80 80 80 . 80 73 73 83 Shots Fired 108 | 8 12 9 . 15 27 28 9 Gun 98 | 8 12 8 . 9 27 28 6 Cannon 3 | . . . . . . . 3 Launcher 7 | . . 1 . 6 . . . Special . | . . . . . . . . Kinetic 38 | . . . . . 18 14 6 Thermal 3 | . . . . . . . 3 Explosive 7 | . . 1 . 6 . . . Electromagnetic 60 | 8 12 8 . 9 9 14 . Robot Hit Streak 13 | 6 5 2 . 3 13 10 2 Robot Miss Streak 4 | 1 1 2 . 4 2 3 4 Penetration Max . | . . . . . . . . Secondary Targets . | . . . . . . . . Shots Hit Robots 79 | 7 7 3 . 6 23 22 11 Core Hits 39 | 3 6 3 . 5 11 8 3 Critical Kills . | . . . . . . . . Critical Parts Destroyed . | . . . . . . . . Critical Strikes . | . . . . . . . . Melee Attacks 6 | . . . . . . . 6 Impact . | . . . . . . . . Slashing . | . . . . . . . . Piercing . | . . . . . . . . Sneak Attacks 2 | . . . . . . . 2 Combat Hostiles . | . . . . . . . . Follow-up Attacks . | . . . . . . . . Damage Inflicted 1488 | 91 118 51 . 243 463 422 100 Guns 1103 | 91 118 49 . 27 429 311 78 Cannons 22 | . . . . . . . 22 Explosions 360 | . . . . 215 34 111 . Melee . | . . . . . . . . Ramming 3 | . . 2 . 1 . . . Kinetic 491 | . . . . . 211 202 78 Thermal 167 | . . . . . 34 111 22 Explosive 215 | . . . . 215 . . . Electromagnetic 612 | 91 118 49 . 27 218 109 . Impact . | . . . . . . . . Slashing . | . . . . . . . . Piercing . | . . . . . . . . Highest Corruption 7 | . . . . . . 1 7 Average Corruption 1 | . . . . . . 1 3 Corruption Purged . | . . . . . . . . Corruption Blocked . | . . . . . . . . Effects 4 | . . . . . . 2 2 Message Errors 2 | . . . . . . 1 1 Data Loss (minor) 1 | . . . . . . . 1 Data Loss (major) 1 | . . . . . . 1 . Overload Shots . | . . . . . . . . Overflow Damage 44 | . . . . 7 . 37 . Projectiles . | . . . . . . . . Explosions 44 | . . . . 7 . 37 . Melee . | . . . . . . . . Knockbacks . | . . . . . . . . Impact . | . . . . . . . . Kinetic . | . . . . . . . . Secondary . | . . . . . . . . Self-Inflicted Damage 123 | . . . . 8 29 86 . Shots 4 | . . . . 1 1 2 . Rammed 2 | . . 1 . 1 . . . Targets Rammed 2 | . . 1 . 1 . . . Kicked . | . . . . . . . . Crushed . | . . . . . . . . Highest Temperature 54 | 54 48 36 . 51 20 9 38 Average Temperature 19 | 25 22 20 . 22 8 6 20 Received Heat Transfer 447 | . 63 . . 114 144 . 126 Siege Activations . | . . . . . . . . Robots Corrupted . | . . . . . . . . Combat Hostiles . | . . . . . . . . Parts Fried 4 | 2 . . . . 2 . . Impact Corruptions . | . . . . . . . . Robots Melted . | . . . . . . . . Combat Hostiles . | . . . . . . . . Parts Melted . | . . . . . . . . Heat Transferred 237 | . . . . . 50 150 37 Parts Sabotaged . | . . . . . . . . Parts Stolen . | . . . . . . . . Parts Stripped . | . . . . . . . . Power Chain Reactions 3 | . . . . . 1 2 . Alert | -11 -10 -10 -10 -9 -8 -7 -7 ------- Run | Yrd Mat Min Exi Min Mat Fac Low Peak Influence 113 | 10 65 110 . 44 113 66 . Initial 25 | . 6 25 . . . 18 . Average 28 | 4 27 50 . 11 19 21 . Maximum Alert Level . | . . . . . . . . Low Security (%) 100 | 100 100 100 . 100 100 100 . Level 1 . | . . . . . . . . Level 2 . | . . . . . . . . Level 3 . | . . . . . . . . Level 4 . | . . . . . . . . Level 5 . | . . . . . . . . High Security . | . . . . . . . . Max Security . | . . . . . . . . Squads Dispatched 3 | . 1 . . . 1 1 . Investigation 1 | . . . . . 1 . . Extermination 1 | . . . . . . 1 . Reinforcement 1 | . 1 . . . . . . Assault . | . . . . . . . . Garrison . | . . . . . . . . Intercept . | . . . . . . . . Searches Triggered . | . . . . . . . . Construction Impeded . | . . . . . . . . Haulers Reinforced . | . . . . . . . . Active Scanning Responses . | . . . . . . . . Cargo Convoy Interrupts . | . . . . . . . . Stealth | -11 -10 -10 -10 -9 -8 -7 -7 --------- Run | Yrd Mat Min Exi Min Mat Fac Low Distress Signals 2 | . . 1 . . 1 . . Communications Jammed . | . . . . . . . . Distress Signals . | . . . . . . . . Times Spotted 39 | . 7 5 . 8 9 5 5 Peak Tracking Total 6 | . 2 2 . 6 2 1 5 Tactical Retreats 3 | . . 1 . 1 . . 1 Traps | -11 -10 -10 -10 -9 -8 -7 -7 ------- Run | Yrd Mat Min Exi Min Mat Fac Low Traps Triggered . | . . . . . . . . Indirectly . | . . . . . . . . Trap Hack Attempts . | . . . . . . . . Triggered . | . . . . . . . . Disarmed 4 | . 4 . . . . . . Reprogrammed . | . . . . . . . . Reused 1 | . . . . . . . 1 Traps Extracted . | . . . . . . . . Installed 1 | . . . . . . . 1 Triggered 4 | . . . . . . 1 3 Most Traps Carried 1 | . . 1 1 1 1 1 1 Machines | -11 -10 -10 -10 -9 -8 -7 -7 ---------- Run | Yrd Mat Min Exi Min Mat Fac Low Machines Disabled 3 | . . 2 . . 1 . . Max in Single Turn 1 | . . . . . 1 . . Garrison Access 1 | . . . . . 1 . . Machines Repaired . | . . . . . . . . Machines Dismantled . | . . . . . . . . Machines Sabotaged . | . . . . . . . . Overloaded Fab Kills . | . . . . . . . . Hacking | -11 -10 -10 -10 -9 -8 -7 -7 --------- Run | Yrd Mat Min Exi Min Mat Fac Low Machines Accessed 6 | . 2 . . . 3 . 1 Terminals 4 | . 2 . . . 2 . . Fabricators . | . . . . . . . . Repair Stations . | . . . . . . . . Recycling Units . | . . . . . . . . Scanalyzers . | . . . . . . . . Garrison Access 1 | . . . . . 1 . . Total Hacks 16 | . 4 . . . 11 . 1 Successful 9 | . 2 . . . 6 . 1 Failed 7 | . 2 . . . 5 . . Catastrophic 3 | . . . . . 3 . . Database Lockouts . | . . . . . . . . Manual 12 | . 4 . 1 . 7 . . Terminals 12 | . 4 . . . 8 . . Fabricators . | . . . . . . . . Repair Stations . | . . . . . . . . Recycling Units . | . . . . . . . . Scanalyzers . | . . . . . . . . Garrison Access 3 | . . . . . 3 . . Terminal Hacks 7 | . 1 . . . 5 . 1 Record 1 | . . . . . 1 . . Open Door 1 | . . . . . . . 1 Terminal Index 1 | . . . . . 1 . . Alert Level 1 | . . . . . 1 . . Unreport Threat 1 | . . . . . 1 . . Disarm Traps 1 | . 1 . . . . . . Zone Layout 1 | . . . . . 1 . . Fabricator Hacks . | . . . . . . . . Repair Station Hacks . | . . . . . . . . Recycling Unit Hacks . | . . . . . . . . Scanalyzer . | . . . . . . . . Garrison Access Hacks 1 | . . . . . 1 . . Seal Access 1 | . . . . . 1 . . Unauthorized Hacks 1 | . 1 . . . . . . Terminals 1 | . 1 . . . . . . Assimilate 1 | . 1 . . . . . . Fabricators . | . . . . . . . . Repair Stations . | . . . . . . . . Recycling Units . | . . . . . . . . Scanalyzers . | . . . . . . . . Garrison Access . | . . . . . . . . Data Cores Recovered . | . . . . . . . . Used . | . . . . . . . . Hacking Detections 3 | . 1 . . . 2 . . Full Trace Events 1 | . . . . . 1 . . Feedback Events . | . . . . . . . . Feedback Blocked . | . . . . . . . . Robot Schematics Acquired . | . . . . . . . . Robots Built . | . . . . . . . . Authchips . | . . . . . . . . Time . | . . . . . . . . Total Robot Build Rating . | . . . . . . . . Part Schematics Acquired . | . . . . . . . . Parts Built . | . . . . . . . . Authchips . | . . . . . . . . Time . | . . . . . . . . Total Part Build Rating . | . . . . . . . . Parts Repaired . | . . . . . . . . Time . | . . . . . . . . Parts Recycled . | . . . . . . . . Recycled Matter . | . . . . . . . . Retrieved Matter . | . . . . . . . . Retrieved Components . | . . . . . . . . Parts Scanalyzed . | . . . . . . . . Part Schematics Acquired . | . . . . . . . . Parts Damaged . | . . . . . . . . Bothacking | -11 -10 -10 -10 -9 -8 -7 -7 ------------ Run | Yrd Mat Min Exi Min Mat Fac Low Used RIF Installer . | . . . . . . . . Robots Hacked 2 | . . . . . . . 2 Non-combat . | . . . . . . . . Combat 2 | . . . . . . . 2 Robot Hacks Applied 2 | . . . . . . . 2 parse_system 2 | . . . . . . . 2 Relay Couplers Released . | . . . . . . . . Fabnet Peak Effective % . | . . . . . . . . Robots Rewired . | . . . . . . . . Allies Hacked . | . . . . . . . . Hacks Repelled . | . . . . . . . . Allies | -11 -10 -10 -10 -9 -8 -7 -7 -------- Run | Yrd Mat Min Exi Min Mat Fac Low Total Allies 4 | . . 4 . . . . . Largest Group 4 | . . 4 3 3 . . . Highest-Rated Group 71 | . . 71 40 40 . . . Highest-Rated Ally 31 | . . 31 16 16 . . . Total Orders . | . . . . . . . . Ally Attacks 53 | . . 16 . 37 . . . Total Damage 587 | . . 141 . 446 . . . Kills 8 | . . 2 . 6 . . . Allies Corrupted . | . . . . . . . . Allies Melted . | . . . . . . . . Intel | -11 -10 -10 -10 -9 -8 -7 -7 ------- Run | Yrd Mat Min Exi Min Mat Fac Low Robot Analysis Total . | . . . . . . . . Derelict Logs Recovered 3 | . . 2 . 1 . . . Drone Launches . | . . . . . . . . Drone Recoveries . | . . . . . . . . Exploration | -11 -10 -10 -10 -9 -8 -7 -7 ------------- Run | Yrd Mat Min Exi Min Mat Fac Low Turns Passed 5054 | 138 702 1153 486 455 920 1086 114 Spaces Moved 2429 | 67 274 625 281 242 463 420 57 Core 15 | 12 . . . 2 . . 1 Treads 1475 | 55 274 625 281 240 . . . Legs 939 | . . . . . 463 420 56 Wheels . | . . . . . . . . Hover . | . . . . . . . . Flight . | . . . . . . . . Fastest Speed 50 | 50 160 160 160 160 120 120 120 Average Speed 145 | 145 160 160 160 160 124 120 125 Slowest Speed 450 | 160 160 160 160 250 190 120 450 Overloaded Moves . | . . . . . . . . Propulsion Burnouts . | . . . . . . . . Robots Hopped 1 | . . . . . . . 1 Cave-ins Triggered . | . . . . . . . . Exploration Rate (%) 33 | 4 30 87 61 48 25 7 7 Regions Visited 7 Branch Regions 4 Pre-discovered Areas . | . . . . . . . . Known Exits Taken 5 | . . 1 1 1 1 1 . Unknown Exits Taken 2 | 1 1 . . . . . . Scrap Searched 2 | . . . . 1 . . 1 Spaces Dug 8 | . . 8 . . . . . Terrain Destroyed 26 | . . 8 . 11 4 3 . Melee . | . . . . . . . . Projectile . | . . . . . . . . AOE 26 | . . 8 . 11 4 3 . Terrain Rammed . | . . . . . . . . Walls Destroyed . | . . . . . . . . Machines Disabled . | . . . . . . . . Actions | -11 -10 -10 -10 -9 -8 -7 -7 --------- Run | Yrd Mat Min Exi Min Mat Fac Low Total 3846 | 99 526 768 318 292 778 976 89 Wait 1263 | 7 242 130 36 38 271 528 11 Move 2420 | 66 273 624 280 241 462 419 55 Hop 1 | . . . . . . . 1 Pick Up 37 | 14 3 2 1 . 13 3 1 Fast Attach 2 | . . . . . 1 1 . Attach 24 | 7 . . . 1 8 3 5 Detach 2 | . . . . . . 2 . Swap 12 | 1 1 4 . 2 1 2 1 Drop 13 | . 1 2 1 . 4 4 1 Fire 63 | 4 6 5 . 9 18 14 7 Melee 6 | . . . . . . . 6 Ram . | . . . . . . . . Kick . | . . . . . . . . Crush 2 | . . 1 . 1 . . . Escape Stasis . | . . . . . . . . Rewire . | . . . . . . . . Trap 1 | . . . . . . . 1 Miscellaneous . | . . . . . . . . Route ------- -11/Scrapyard -10/Materials -10/Mines (discovered 3 exits: *Mat x2 / *Exi) -10/Exiles -9/Mines -8/Materials -7/Factory -7/Lower Caves History --------- Turn | Location | Event 18 | -11/Scrapyard | Discovered new exit (range 14) 139 | -11/Scrapyard | Entered Materials 311 | -10/Materials | Build established: Mutant 334 | -10/Materials | Discovered new exit (range 13) 841 | -10/Materials | Entered Mines 976 | -10/Mines | Found a damaged Exp. Sensor Array with a note attached 980 | -10/Mines | Found Prototype Device 985 | -10/Mines | Learned Materials terminal intel 1113 | -10/Mines | Assisted by bots powering up and referring to "LRC-V3" 1282 | -10/Mines | Learned Materials trap positions 1291 | -10/Mines | Discovered new exit (range 8) 1394 | -10/Mines | Received a Mining Laser from a helpful Derelict 1500 | -10/Mines | Discovered new exit (range 13) 1611 | -10/Mines | Identified exit to Materials 1899 | -10/Mines | Found a hidden stash of uninstalled traps 1986 | -10/Mines | Deemed a non-threat by the Exiles lab entrance 1986 | -10/Mines | Discovered new exit (range 5) 1991 | -10/Mines | Identified exit to Exiles 1994 | -10/Mines | Entered Exiles 1994 | -10/Exiles | Accompanied by 3 allies 2034 | -10/Exiles | Met 8R-AWN 2060 | -10/Exiles | Met EX-HEX 2142 | -10/Exiles | Met EX-BIN 2166 | -10/Exiles | Aligned with FarCom system 2167 | -10/Exiles | Given EX-Vault access code 2249 | -10/Exiles | Opened EX-Vault 2259 | -10/Exiles | Found Prototype Device 2292 | -10/Exiles | Warned to stay clear of 0b10 Research branches 2315 | -10/Exiles | Exiles lab attacked by MAIN.C 2466 | -10/Exiles | Discovered new exit (range 10) 2478 | -10/Exiles | Identified exit to Mines 2480 | -10/Exiles | Left Exiles lab with Skeleton Box 2480 | -10/Exiles | Entered Mines 2480 | -9/Mines | Accompanied by 3 allies 2485 | -9/Mines | Met a Derelict bent on vengeance 2486 | -9/Mines | Assembled infested the area 2491 | -9/Mines | Assisted by a Guerilla fighting off Assembled 2721 | -9/Mines | Learned Materials trap positions 2804 | -9/Mines | Discovered new exit (range 8) 2825 | -9/Mines | Identified exit to Materials 2935 | -9/Mines | Entered Materials 2935 | -8/Materials | Evolved 4 slots: Propulsion x2, Utility x2 2936 | -8/Materials | Loaded intel: 21 trap records 2937 | -8/Materials | Loaded intel: 10 terminal locations 2963 | -8/Materials | Lost 3 parts (2n1w) 3004 | -8/Materials | Identified Skeleton Box 3843 | -8/Materials | Discovered new exit (range 10) 3854 | -8/Materials | Identified exit to Factory 3855 | -8/Materials | Entered Factory 3855 | -7/Factory | Evolved 2 slots: Utility x2 3856 | -7/Factory | Identified Exp. Sensor Array 4169 | -7/Factory | Build established: Skirmisher 4861 | -7/Factory | Discovered new exit (range 7) 4887 | -7/Factory | Identified exit to Lower Caves 4941 | -7/Factory | Entered Lower Caves 4993 | -7/Lower Caves | Attracted the attention of an 0b10 outpost 5036 | -7/Lower Caves | Found Prototype Device 5037 | -7/Lower Caves | Identified Heart of Steel 5041 | -7/Lower Caves | Core integrity fell below 50% 5048 | -7/Lower Caves | Core integrity fell below 20% 5055 | -7/Lower Caves | Destroyed by Y-64 Sentinel with Wave Gun Last Messages --------------- Axe 05041_ Penetrated by Slug. 05041_ Jacked B-48 Gladiator... 05041_ Command string: trojan(assimilate) 05041_ No effect. 05043_ Jacked B-48 Gladiator... 05043_ Command string: \\iamderelict 05043_ No effect. 05044_ Critical hit (Burn: +37). 05044_ Slug penetrates B-48 Gladiator. 05045_ Mic. Nuclear Core severed. 05047_ Penetrated by Slug. 05047_ Datajack destroyed. 05050_ Penetrated by Slug. 05051_ Critical hit (Smash). 05051_ System Shield destroyed. 05051_ System corrupted by crushing effect (+1). 05052_ Signal Interpreter severed. 05052_ B-48 Gladiator destroyed. 05052_ Penetrated by Slug. Map ----- +----------------------------------------------------+ | ?????????????????????????????????????????????????? | | ?????????????????????????????????????????????????? | | ?????????????????????????????????????????????????? | | ?????????????????????????????????????????????????? | | ?????????????????????????????????????????????????? | | ?????????????????????????????????????????????????? | | ?????????????????????????????????????????????????? | | ?????????????????????????????????????????????????? | | ?????????????????????????????????????????????????? | | ?????????????????????????????????????????????????? | | ?????????????????????????????????????????????????? | | ?????????????????????????????????????????????????? | | ?????????????????????????????????????????????????? | | ?????????????????????????????????????????????????? | | ?????????????????????????????????????????????????? | | ?????????????????????????????????????????????????? | | ?????????????????????????????????????????????????? | | ?????????????????????????????????????????????????? | | ?????????????????????????????????????????????????? | | ?????????????????????????????????????????????????? | | ?????????????????????????????????????????????????? | | ?????????????????????????????????????????????????? | | ?????????????????????????????????????????????????? | | ?????????????????????????######??????????????????? | | ????????????????????????##bY""#??????????????????? | | ????????????????????????#@l!%"#??????????????????? | | ????????????????????????### ###??????????????????? | | ?????????????????????????# X#???????####????????? | | ???????????????????????###%######????# ##???????? | | ???????????????????????# # #???## ##??????? | | ???????????????????????# ##### #??????? | | ???????????????????????# # ##?????? | | ???????????????????????# ## ### #?????? | | ?????????????????????### ## ### # # #?????? | | ?????????????????????# * # #??????? | | ?????????????????????## ##??????? | | ??????????????????????## ###### ##???????? | | ???????????????????????## ##????# ##????????? | | ????????????????????????# ##?????# # ##???????? | | ????????????????????????# ##??????## # #???????? | | ????????????????????????# #????????### #???????? | | ????????????????????????# #??????????# #???????? | | ????????????????????????# #???????#### #???????? | | ????????????????????????# ??????## ##^ #???????? | | ????????????????????????# ??????# #???????? | | ???????????????????????? ??????# #####???????? | | ???????????????????????? ??????# #???????????? | | ???????????????????????? ??????# ???????????? | | ??????????????????????? ?????? ???????????? | | ??????????????????????? ????# ??????????? | +----------------------------------------------------+ Best States ------------- Heat Dissipation 34 Energy Generation 16 Energy Capacity 290 Matter Stores 300 Matter Capacity 300 Sight Range 16 Robot Scan Range 20 Terrain Scan Density 10 Jamming Range 12 Evasion (%) 55 Recoil Reduction 2 Defensive Hacking 10 Item Schematics ----------------- None Robot Schematics ------------------ None Fabricated ------------ Nothing Alien Tech Used ----------------- None Achievements -------------- root@ Challenges ------------ None Game ------ Seed LaserAssaultMagmablaster Manual? 0 Play Time 00:54:02 Cumulative 14.3 hours Start 2024.04.08 @ 21:06:26 End 2024.04.09 @ 14:06:38 Sessions 7 Manual Loads 0 Difficulty Rogue Special Mode None Game No. 23 Rogue 23 Adventurer 0 Explorer 0 Win Type - Total 0 Types 0/0/0/0/0/0/0/0/0 Lore% 17 Gallery% 22 Achievement% 16 Wizard Run 0 Options --------- Layout 0 ASCII 0 Keyboard 0 Movement Mouse Keybinds 0 Fullscreen 1 Font 24/Smallcaps Map View 76x50 Zoom Use 0% Tactical HUD 1 Map Filters NONE Filters NONE Steam 1 RUN: c72e0ef6-6aa4-4fb3-b33a-c19e7ee34dd0